bitfinex/quotes_ETHUSD_20260130
["timestamp","ask_amount","ask_price","bid_price","bid_amount"]
[1769733276454,1.38684432,2809.2,2808.7,0.002]
[1769733276656,0.4968917,2809.2,2808.7,13.45709578]
[1769733276839,0.88991746,2809.3,2808.7,13.45709578]
[1769733277758,0.88985412,2809.5,2808.7,13.45709578]
[1769733279258,3.55927412,2809.6,2808.7,13.45709578]
[1769733280160,3.55927412,2809.6,2808.7,14.34717238]
[1769733281432,3.56098681,2809.8,2808.7,14.34717238]
[1769733281433,0.002,2809.8,2808.7,14.34717238]
[1769733281633,0.002,2809.8,2808.8,13.45509578]
[1769733285263,0.89174304,2809.8,2808.8,13.45509578]
[1769733285768,0.89174304,2809.8,2808.8,14.34514723]
[1769733286768,0.002,2809.1,2808.8,14.34514723]
[1769733288748,0.001,2809.6,2808.9,13.45509578]
[1769733294074,0.001,2809.6,2808.9,14.3451235]
[1769733295286,12.9440089,2809.5,2808.8,0.002]
[1769733295483,12.9440089,2809.5,2808.7,0.002]
[1769733297360,0.88986972,2809.4,2808.7,0.002]
[1769733297582,1.73933575,2809.3,2808.7,0.002]
[1769733300391,0.88993307,2809.2,2808.7,0.002]
[1769733300593,0.88993307,2809.2,2808.9,0.002]
[1769733303690,0.88991978,2809.3,2808.9,13.05254418]
[1769733304263,0.88991978,2809.3,2808.9,0.002]
[1769733304464,0.51984466,2809.2,2808.9,0.002]
[1769733305377,0.88991978,2809.3,2808.9,0.002]
[1769733307494,0.8706318,2809.3,2808.9,0.002]
[1769733308262,0.8706318,2809.3,2809.0,0.001]
[1769733309900,0.8706318,2809.3,2808.9,0.002]
[1769733314004,0.8706318,2809.3,2809.1,0.002]
[1769733314201,16.68445928,2809.3,2808.9,0.002]
[1769733314569,3.10250377,2809.3,2808.9,0.002]
[1769733314772,0.8706318,2809.3,2808.9,0.002]
[1769733317004,0.8706318,2809.3,2808.7,13.00454418]
[1769733318306,0.8706318,2809.3,2809.0,0.002]
[1769733318478,0.8706318,2809.3,2808.7,13.00454418]
[1769733323510,0.8726318,2809.3,2808.7,13.00454418]
[1769733323710,1.74650822,2809.3,2808.7,13.00454418]
[1769733326509,1.74650822,2809.3,2808.9,0.002]
[1769733326912,0.001,2809.1,2808.9,0.002]
[1769733330533,0.001,2809.1,2808.6,0.002]
[1769733331089,13.84804121,2809.1,2808.6,0.002]
[1769733331293,13.84704121,2808.6,2808.0,0.002]
[1769733331532,14.59304121,2808.5,2808.0,0.002]
[1769733331826,0.746,2808.5,2808.0,0.002]
[1769733332016,2.84027532,2808.5,2808.0,0.002]
[1769733333099,0.89018658,2808.4,2808.0,0.002]
[1769733338732,0.89018658,2808.4,2808.2,0.002]
[1769733342434,0.89018658,2808.4,2808.0,0.002]
[1769733342640,0.89018658,2808.4,2808.0,0.00100811]
[1769733343243,3.00400804,2808.4,2808.0,0.00100811]
[1769733343737,16.53667899,2808.4,2808.0,0.00100811]
[1769733343916,14.42285753,2808.4,2808.0,0.00100811]
[1769733344318,0.89018658,2808.4,2808.0,0.00100811]
[1769733350640,0.89018658,2808.4,2808.2,0.002]
[1769733351718,0.002,2808.8,2808.2,0.002]
[1769733351912,2.2435586,2808.7,2808.2,0.002]
[1769733352428,0.746,2808.6,2808.2,0.002]
[1769733352925,0.002,2808.8,2808.2,12.75384057]
[1769733353439,0.002,2808.5,2808.2,12.75184057]
[1769733353949,0.001,2809.4,2808.2,12.75184057]
[1769733354357,0.747,2809.6,2808.5,12.75184057]
[1769733354731,0.747,2809.6,2808.7,12.75184057]
[1769733355357,0.001,2809.6,2808.7,12.75184057]
[1769733356858,0.001,2809.6,2808.9,12.74547341]
[1769733357757,1.04888824,2810.1,2809.1,12.74547341]
[1769733358825,16.8202207,2810.5,2808.6,4.30646123]
[1769733358826,13.2620295,2811.3,2809.7,12.74547341]
[1769733359130,14.0080295,2811.2,2809.7,12.74547341]
[1769733359367,13.2620295,2811.0,2809.9,12.74547341]
[1769733359663,1.76397405,2811.1,2809.9,12.74547341]
[1769733359960,0.746,2811.1,2809.9,12.74547341]
[1769733360254,0.88924681,2811.4,2810.0,12.74547341]
[1769733360428,13.2630295,2811.6,2810.3,12.74547341]
[1769733360630,0.001,2811.6,2810.6,12.74547341]
[1769733360961,0.001,2811.6,2811.0,12.74547341]
[1769733361118,0.001,2811.6,2810.9,0.88939485]
[1769733361552,0.001,2811.6,2810.9,13.63486826]
[1769733362124,0.001,2811.6,2810.9,13.63086826]
[1769733362460,0.001,2811.6,2810.8,3.55757942]
[1769733362461,13.2630295,2811.6,2810.5,0.88949984]
[1769733362671,1.32630295,2811.5,2810.6,0.88948624]
[1769733362948,0.001,2811.4,2810.6,0.88948624]
[1769733363248,0.001,2811.4,2810.4,12.74547341]
[1769733363451,0.001,2811.4,2810.5,3.55806585]
[1769733363752,0.22165332,2811.3,2810.5,0.88952143]
[1769733364331,0.22165332,2811.3,2810.5,13.63499484]
[1769733367329,0.22165332,2811.3,2810.5,0.88952143]
[1769733367330,14.37295211,2811.3,2810.5,0.88952143]
[1769733367569,1.43739521,2811.2,2810.5,0.88952143]
[1769733368440,1.43739521,2811.2,2810.6,0.001]
[1769733369566,2.32670342,2811.2,2810.6,0.001]
[1769733369772,1.43739521,2811.2,2810.6,0.001]
[1769733370469,1.44139521,2811.2,2810.6,0.001]
[1769733370761,1.58143668,2811.1,2810.6,0.001]
[1769733372631,14.84346618,2811.1,2810.6,0.001]
[1769733373037,15.73280545,2811.1,2810.6,0.001]
[1769733374376,15.73280545,2811.1,2810.7,0.002]
[1769733374682,15.73280545,2811.1,2809.8,0.889717]
[1769733374683,15.73380545,2811.1,2809.8,0.889717]
[1769733374838,13.2620295,2810.9,2810.5,0.002]
[1769733375172,13.2620295,2810.7,2810.5,0.002]
[1769733375378,14.15151928,2810.6,2810.5,0.002]
[1769733376393,3.55783499,2810.7,2810.5,0.002]
[1769733376394,0.88948168,2810.7,2810.5,0.002]
[1769733381078,1.51914304,2810.8,2810.5,0.002]
[1769733381367,0.001,2811.1,2810.5,0.002]
[1769733381577,0.001,2811.1,2810.5,12.74747341]
[1769733381948,14.15236243,2811.1,2810.5,0.002]
[1769733382956,14.15236243,2811.1,2810.6,0.001]
[1769733383182,13.2620295,2810.9,2810.6,0.001]
[1769733383493,0.003,2810.1,2809.8,12.74547341]
[1769733386585,0.003,2810.1,2809.9,0.88971137]
[1769733386789,0.001,2810.7,2809.9,13.8020391]
[1769733387991,0.001,2810.7,2810.1,12.91232773]
[1769733389194,0.001,2810.7,2810.2,0.88961639]
[1769733391600,0.001,2810.7,2810.2,12.91232773]
[1769733393703,0.001,2810.7,2810.3,0.88958474]
[1769733398490,0.001,2810.5,2810.3,0.88958474]
[1769733398889,0.001,2810.7,2810.2,3.55846403]
[1769733399484,0.001,2810.7,2810.2,3.55946403]
[1769733401108,13.44915177,2810.7,2810.2,0.001]
[1769733406524,14.33861135,2810.7,2810.2,0.001]
[1769733406682,16.12843061,2810.7,2810.2,0.001]
[1769733409089,15.23897103,2810.7,2810.2,0.001]
[1769733410222,16.1284346,2810.7,2810.2,0.001]
[1769733410725,16.1284346,2810.7,2810.4,0.002]
[1769733411028,0.001,2810.5,2810.4,0.002]
[1769733411214,0.001,2810.7,2810.4,0.002]
[1769733417138,13.40245948,2810.7,2810.4,0.002]
[1769733422502,0.001,2810.7,2810.4,0.002]
[1769733422918,0.001,2811.1,2810.4,13.93462719]
[1769733423137,0.001,2811.1,2810.6,13.93262719]
[1769733425030,0.001,2811.1,2810.7,0.88945814]
[1769733425232,13.40245948,2811.4,2810.6,0.88946581]
[1769733425532,13.40145948,2811.2,2810.5,0.88950331]
[1769733426940,13.40145948,2811.2,2810.6,0.8894842]
[1769733427109,13.40145948,2811.2,2810.4,0.002]
[1769733428508,13.40145948,2811.2,2810.8,0.002]
[1769733428705,1.48306268,2811.1,2810.8,0.002]
[1769733428926,13.40145948,2811.1,2810.8,0.002]
[1769733430439,13.40145948,2811.3,2810.8,0.002]
[1769733434040,1.63725772,2811.4,2810.8,0.002]
[1769733434245,0.748,2811.4,2810.8,0.002]
[1769733435324,1.63723918,2811.4,2810.8,0.002]
[1769733435525,15.03869866,2811.4,2810.8,0.002]
[1769733436043,16.89834309,2811.4,2810.8,0.002]
[1769733436614,13.40145948,2811.3,2810.8,0.002]
[1769733436844,13.40145948,2811.3,2810.8,0.004]
[1769733437140,0.001,2811.2,2810.8,0.004]
[1769733437340,13.40245948,2811.2,2810.8,0.004]
[1769733438845,0.001,2811.2,2810.8,0.004]
[1769733439020,0.001,2811.2,2810.8,13.93662719]
[1769733439553,0.001,2811.2,2810.8,0.004]
[1769733440234,0.001,2811.2,2810.8,0.89342649]
[1769733440656,0.001,2811.2,2810.8,14.82605368]
[1769733442255,0.001,2811.6,2811.0,14.8219904]
[1769733443636,0.001,2811.6,2811.1,0.002]
[1769733444651,0.001,2811.6,2811.1,13.93462719]
[1769733445938,12.79582199,2811.9,2811.1,13.93462719]
[1769733446650,12.79682199,2812.1,2811.2,14.31634204]
[1769733450268,0.001,2812.1,2811.3,6.34154762]
[1769733450479,0.001,2812.1,2811.4,13.4270421]
[1769733450703,0.002,2811.7,2811.4,13.4270421]
[1769733450982,0.001,2812.1,2811.5,0.88920505]
[1769733453141,0.001,2812.1,2811.5,14.31624715]
[1769733453472,0.001,2812.1,2811.5,0.88920505]
[1769733456480,0.001,2812.1,2811.4,3.5568202]
[1769733457575,0.001,2812.1,2811.5,12.81789485]
[1769733457943,0.001,2812.1,2811.4,3.5568202]
[1769733458693,0.001,2812.1,2811.6,0.002]
[1769733458879,0.001,2812.1,2811.6,12.81989485]
[1769733459084,0.002,2812.2,2811.7,12.81789485]
[1769733459583,0.002,2812.2,2811.7,13.56289485]
[1769733460394,13.91036044,2812.2,2811.7,0.745]
[1769733460689,13.91036044,2812.2,2811.7,1.63412167]
[1769733460859,13.91036044,2812.2,2811.7,0.88914017]
[1769733461264,16.19038383,2812.2,2811.6,0.002]
[1769733461663,16.19038383,2812.2,2811.0,4.30443908]
[1769733461893,13.90836044,2812.0,2811.2,0.88929635]
[1769733462692,14.79743074,2812.0,2811.0,0.89136321]
[1769733462871,14.79743074,2812.0,2811.6,0.002]
[1769733463070,13.90836044,2811.8,2811.6,0.002]
[1769733463379,15.38820351,2811.8,2811.6,0.002]
[1769733468400,13.90836044,2811.8,2811.6,0.002]
[1769733468578,0.001,2811.9,2811.6,0.002]
[1769733470171,0.001,2811.9,2811.6,0.004]
[1769733473805,0.003,2811.9,2811.6,0.002]
[1769733476910,0.001,2811.7,2811.6,0.002]
[1769733510360,13.49032176,2812.4,2811.6,0.002]
[1769733510940,0.88885951,2812.6,2811.6,13.21893937]
[1769733511244,13.63416806,2812.7,2811.6,13.21893937]
[1769733511445,12.74532176,2812.5,2811.7,0.8891418]
[1769733514165,0.001,2812.2,2811.6,0.002]
[1769733515651,13.60309028,2812.3,2811.6,0.002]
[1769733518963,13.60309028,2812.3,2812.0,0.002]
[1769733520471,13.55309028,2812.3,2812.0,0.002]
[1769733521274,13.55309028,2812.3,2811.6,0.89117342]
[1769733523372,13.55309028,2812.3,2811.6,0.002]
[1769733523876,13.55309028,2812.3,2811.8,0.002]
[1769733525272,14.5429717,2812.6,2811.8,0.002]
[1769733525457,16.35279165,2812.6,2811.8,0.002]
[1769733529780,16.35279165,2812.6,2812.0,0.002]
[1769733533926,0.002,2812.3,2811.8,0.002]
[1769733534084,13.65409028,2812.3,2811.8,0.002]
[1769733541995,0.002,2812.3,2811.8,0.002]
[1769733542999,0.002,2812.3,2811.8,12.9374945]
[1769733544316,0.002,2812.3,2811.9,0.88907855]
[1769733545730,0.002,2812.3,2811.8,0.002]
[1769733547725,0.002,2812.3,2811.8,0.89111017]
[1769733548945,0.002,2812.3,2811.8,12.9374945]
[1769733549631,0.002,2812.3,2811.8,0.002]
[1769733550833,0.001,2812.3,2811.8,0.002]
[1769733551650,13.37082651,2812.2,2811.8,0.002]
[1769733559454,0.001,2812.3,2811.8,0.002]
[1769733559848,0.001,2812.3,2812.0,0.002]
[1769733560224,0.001,2812.1,2812.0,0.002]
[1769733572364,0.001,2812.3,2812.0,0.002]
[1769733573235,0.001,2812.1,2812.0,0.002]
[1769733579773,13.76359889,2812.1,2812.0,0.002]
[1769733579979,0.001,2812.1,2812.0,0.002]
[1769733581484,15.13995878,2812.1,2811.6,0.002]
[1769733581662,13.76359889,2812.1,2811.0,0.002]
[1769733581844,13.76359889,2812.1,2811.0,0.006]
[1769733583700,13.76259889,2811.9,2811.0,0.006]
[1769733585508,13.76259889,2811.9,2811.2,0.002]
[1769733585679,14.65174069,2811.7,2811.2,0.002]
[1769733585858,14.65174069,2811.7,2811.2,0.006]
[1769733589728,14.65174069,2811.7,2811.0,0.002]
[1769733589729,14.64974069,2811.7,2811.0,0.002]
[1769733593106,13.76259889,2811.5,2810.8,0.002]
[1769733593404,13.76259889,2811.3,2810.8,0.002]
[1769733593829,0.745,2811.6,2810.8,0.002]
[1769733594329,13.76259889,2811.6,2810.8,0.002]
[1769733596412,0.88920505,2811.5,2810.8,0.002]
[1769733597422,0.88920505,2811.5,2811.0,0.002]
[1769733597722,1.46518039,2811.4,2811.0,0.002]
[1769733598698,12.82640777,2811.9,2811.0,12.97164253]
[1769733598902,0.88912552,2811.8,2811.0,12.97164253]
[1769733599202,13.71553329,2811.8,2811.0,12.97164253]
[1769733600515,13.71547684,2812.0,2811.0,13.86100032]
[1769733600686,0.88906907,2812.0,2811.1,12.96964253]
[1769733601188,13.71547684,2812.0,2811.1,12.96964253]
[1769733602635,0.001,2812.1,2811.2,13.85894247]
[1769733603296,0.001,2812.1,2811.5,12.96964253]
[1769733603496,0.001,2812.1,2811.7,12.96964253]
[1769733604423,13.66620463,2812.8,2811.5,12.96964253]
[1769733604826,0.745,2812.9,2811.8,12.96964253]
[1769733605123,12.82640777,2813.2,2812.1,12.96964253]
[1769733605325,12.82640777,2813.2,2812.3,12.96964253]
[1769733606906,12.82640777,2813.8,2812.7,12.96964253]
[1769733608113,13.714833,2814.0,2812.7,12.96964253]
[1769733608330,1.72684163,2813.9,2812.9,12.96964253]
[1769733609118,1.72684163,2813.9,2813.0,13.85837342]
[1769733609736,12.82640777,2814.0,2813.0,13.85837342]
[1769733610722,13.71482483,2814.0,2813.0,13.85837342]
[1769733612275,12.82640777,2814.0,2813.0,13.85837342]
[1769733613128,0.002,2813.1,2813.0,13.85837342]
[1769733613335,12.82640777,2814.0,2813.0,13.85837342]
[1769733615177,0.35032606,2814.2,2813.0,13.85837342]
[1769733615354,0.35032606,2814.2,2813.3,12.96964253]
[1769733615355,13.17673383,2814.2,2813.3,12.96964253]
[1769733616177,13.17673383,2814.2,2813.4,0.88860453]
[1769733616493,0.35032606,2814.2,2813.4,13.85824706]
[1769733621501,0.35032606,2814.2,2813.4,13.85624706]
[1769733622199,0.001,2814.0,2813.4,13.85624706]
[1769733629982,0.001,2813.7,2813.4,13.85624706]
[1769733630383,0.001,2814.0,2813.5,13.06703879]
[1769733630613,0.35032606,2814.2,2813.5,13.06703879]
[1769733631375,0.35032606,2814.2,2813.6,0.88854137]
[1769733632012,0.35032606,2814.2,2813.6,13.95558016]
[1769733632511,0.35032606,2814.2,2813.6,14.70058016]
[1769733634010,0.001,2814.0,2813.6,14.70058016]
[1769733636997,0.35032606,2814.2,2813.7,13.91607408]
[1769733637240,0.35032606,2814.2,2813.6,1.63354137]
[1769733637408,13.36228548,2814.2,2813.6,1.63354137]
[1769733638433,13.36228548,2814.2,2813.6,0.88854137]
[1769733638636,13.36228548,2814.2,2813.7,0.004]
[1769733643234,13.36228548,2814.2,2813.7,0.89250979]
[1769733643541,0.35032606,2814.2,2813.7,0.89250979]
[1769733643736,0.35032606,2814.2,2813.7,14.80858387]
[1769733646144,0.35032606,2814.2,2813.8,0.002]
[1769733646347,0.35032606,2814.2,2813.8,13.91807408]
[1769733646643,0.001,2814.0,2813.8,13.91807408]
[1769733647621,0.001,2814.0,2813.9,0.88844663]
[1769733649755,0.001,2814.0,2813.8,0.002]
[1769733656636,12.96295942,2814.1,2813.8,0.002]
[1769733659952,12.96295942,2814.1,2814.0,0.002]
[1769733662945,0.35032606,2814.2,2814.0,0.002]
[1769733668688,0.001,2814.4,2814.0,0.002]
[1769733672002,13.35671856,2814.4,2814.0,0.002]
[1769733672787,0.001,2814.2,2814.0,0.002]
[1769733676310,13.35571856,2814.1,2813.8,0.8944558]
[1769733678908,0.001,2814.2,2813.8,0.8944558]
[1769733683617,0.001,2814.2,2813.8,0.002]
[1769733684225,0.001,2814.2,2813.8,12.61396471]
[1769733684916,0.001,2814.2,2814.0,0.002]
[1769733688143,12.78691273,2814.8,2814.0,0.002]
[1769733696561,0.001,2814.3,2814.0,0.002]
[1769733698564,12.75258858,2814.6,2814.0,0.006]
[1769733698944,0.002,2814.6,2814.0,0.006]
[1769733700034,0.002,2814.6,2814.1,0.88838349]
[1769733706677,12.75258858,2814.6,2814.1,0.88838349]
[1769733708371,12.75258858,2814.6,2814.2,0.002]
[1769733708680,0.002,2814.6,2814.2,0.002]
[1769733711889,12.75258858,2814.6,2814.2,0.002]
[1769733715261,0.002,2814.6,2814.2,0.002]
[1769733715461,0.002,2814.6,2814.2,13.76449754]
[1769733716360,0.002,2814.6,2814.3,0.88832036]
[1769733717305,0.002,2814.6,2814.3,14.6508179]
[1769733717804,0.002,2814.6,2814.3,0.88832036]
[1769733719014,0.002,2814.6,2814.2,3.55528145]
[1769733719680,13.27014704,2814.6,2814.2,0.89035192]
[1769733720870,0.001,2814.4,2814.2,0.89035192]
[1769733722498,13.26814704,2814.9,2814.2,0.89035192]
[1769733725497,13.26814704,2815.1,2814.2,14.65284946]
[1769733728608,13.26814704,2815.1,2814.3,0.004]
[1769733729529,14.15621963,2815.1,2814.3,0.004]
[1769733729676,13.26814704,2815.1,2814.3,0.004]
[1769733731110,0.001,2814.9,2814.3,0.004]
[1769733732389,13.26914704,2814.9,2814.3,0.004]
[1769733734230,13.26914704,2814.9,2814.4,0.002]
[1769733734601,0.001,2814.7,2814.4,0.002]
[1769733744317,0.001,2814.7,2814.4,0.8902888]
[1769733747145,0.001,2814.7,2814.6,0.002]
[1769733749718,12.79260851,2814.7,2814.4,1.6342888]
[1769733755555,12.79260851,2814.7,2814.4,0.002]
[1769733760082,12.79260851,2814.7,2814.6,0.002]
[1769733761584,13.68080263,2814.7,2814.1,0.002]
[1769733761788,13.22649459,2814.5,2813.8,0.002]
[1769733762082,0.8882888,2814.4,2813.8,0.002]
[1769733762271,13.67063899,2814.3,2813.8,0.002]
[1769733764400,14.55899073,2814.3,2813.8,0.002]
[1769733772689,14.55899073,2814.3,2814.0,0.002]
[1769733773416,14.55896056,2814.3,2814.0,0.002]
[1769733773713,14.56096056,2814.3,2814.0,0.002]
[1769733773922,1.45609606,2814.2,2814.0,0.002]
[1769733774586,14.68259065,2814.2,2814.0,0.002]
[1769733777528,1.45609606,2814.2,2814.0,0.002]
[1769733777813,0.4461444,2814.3,2814.0,0.002]
[1769733778019,0.002,2814.3,2814.0,0.002]
[1769733780595,0.002,2814.3,2814.0,0.89041506]
[1769733781387,0.002,2814.3,2814.0,0.002]
[1769733784927,0.002,2814.3,2814.0,0.002]
[1769733785127,13.22118902,2814.7,2814.0,14.53594091]
[1769733785128,0.001,2814.7,2814.0,14.53594091]
[1769733787929,0.001,2814.7,2814.2,13.78894091]
[1769733788940,13.22018902,2815.3,2814.3,13.78894091]
[1769733789714,13.22018902,2815.5,2814.5,13.78894091]
[1769733791743,6.42,2815.6,2814.8,13.78894091]
[1769733792950,19.64018902,2815.6,2814.8,13.78894091]
[1769733793547,19.64018902,2815.6,2814.8,13.78794091]
[1769733794551,13.22018902,2815.9,2814.9,0.88813101]
[1769733795532,13.22018902,2815.8,2814.8,0.8881446]
[1769733795852,14.63098838,2815.8,2814.8,0.88816101]
[1769733796211,0.001,2815.4,2814.8,0.88816101]
[1769733796421,13.22118902,2815.4,2814.8,0.88816101]
[1769733796627,13.22118902,2815.4,2814.5,14.67719814]
[1769733800734,0.001,2815.4,2814.5,14.67719814]
[1769733800933,13.22118902,2815.4,2814.5,14.67719814]
[1769733801235,13.22118902,2815.4,2814.5,0.88825723]
[1769733801862,0.001,2814.6,2814.5,0.88825723]
[1769733802062,13.22018902,2815.1,2814.5,0.88825723]
[1769733803562,0.001,2815.4,2814.5,14.67719814]
[1769733803862,0.001,2815.4,2814.6,13.78894091]
[1769733808038,0.001,2815.2,2814.7,13.99443803]
[1769733808240,0.001,2815.2,2814.7,0.88819412]
[1769733808471,0.001,2815.2,2814.7,1.63219412]
[1769733808964,13.04624525,2815.2,2814.7,1.63219412]
[1769733809343,13.04624525,2815.2,2814.7,0.88819412]
[1769733810367,0.001,2814.9,2814.7,0.88819412]
[1769733810569,13.04624525,2814.9,2814.6,0.88820108]
[1769733810739,13.04624525,2814.9,2814.4,0.88826586]
[1769733811734,13.04624525,2814.9,2814.4,0.88827033]
[1769733812767,13.04624525,2814.9,2814.3,0.004]
[1769733816376,13.04624525,2814.9,2814.3,0.002]
[1769733816875,15.32781571,2814.9,2814.3,0.002]
[1769733817558,15.32781571,2814.9,2814.1,3.55340771]
[1769733817872,15.32781571,2814.9,2814.1,0.88838349]
[1769733818361,0.002,2814.5,2814.1,0.88838349]
[1769733818737,0.001,2814.5,2814.1,0.88838349]
[1769733819067,0.001,2814.5,2814.0,3.5556563]
[1769733820201,13.06091095,2814.5,2814.0,0.89041506]
[1769733820401,14.36810205,2814.5,2814.0,0.002]
[1769733824176,1.3081911,2814.5,2814.0,0.002]
[1769733824350,0.002,2814.5,2814.0,0.002]
[1769733825774,13.06191095,2814.5,2814.0,0.002]
[1769733827384,13.95016937,2814.5,2814.0,0.002]
[1769733827982,13.06191095,2814.5,2814.0,0.002]
[1769733828688,13.95016947,2814.5,2814.0,0.002]
[1769733828852,13.05991095,2814.3,2814.0,0.002]
[1769733831157,13.05991095,2814.3,2813.9,0.002]
[1769733831851,13.05991095,2814.3,2814.2,0.002]
[1769733832277,13.05991095,2814.3,2813.9,0.002]
[1769733833355,13.05991095,2814.3,2813.8,0.002]
[1769733833356,13.06191095,2814.3,2813.8,0.002]
[1769733833556,14.59443284,2814.2,2813.8,0.002]
[1769733844393,14.59443284,2814.2,2814.0,0.002]
[1769733844594,12.75493435,2814.1,2814.0,0.002]
[1769733845903,12.75493435,2814.1,2813.8,6.08e-06]
[1769733847762,13.64332318,2814.1,2813.8,6.08e-06]
[1769733848102,1.51778451,2814.0,2813.8,6.08e-06]
[1769733853087,15.16013998,2814.0,2813.8,6.08e-06]
[1769733853270,15.16013998,2814.0,2813.2,0.002]
[1769733853469,12.75393435,2813.8,2813.2,0.002]
[1769733854377,12.75393435,2813.6,2813.2,0.002]
[1769733854684,14.11817876,2813.5,2813.2,0.002]
[1769733860588,1.36424441,2813.5,2813.2,0.002]
[1769733860783,0.88850192,2813.8,2813.2,0.002]
[1769733860990,13.64243627,2813.8,2812.8,0.002]
[1769733861185,14.38743627,2813.8,2812.8,0.002]
[1769733861385,14.38743627,2813.8,2812.8,0.00100203]
[1769733861592,12.75393435,2813.6,2812.8,0.00100203]
[1769733863507,12.75593435,2813.1,2812.8,0.00100203]
[1769733865314,0.002,2813.1,2812.8,0.00100203]
[1769733865902,0.001,2813.9,2812.8,13.55504933]
[1769733866097,2.32172347,2813.8,2812.8,13.55504933]
[1769733866603,14.24691339,2813.8,2812.8,0.00100203]
[1769733867522,12.81366813,2813.6,2812.8,0.00100203]
[1769733868221,12.81466813,2813.3,2812.8,0.00100203]
[1769733868400,14.09613494,2813.3,2812.8,0.00100203]
[1769733869612,0.8886677,2813.2,2812.8,0.00100203]
[1769733869783,12.81366813,2813.1,2812.8,0.00100203]
[1769733871527,12.81366813,2813.1,2812.6,0.002]
[1769733874535,13.70436944,2813.1,2812.6,0.002]
[1769733874817,13.89366651,2812.8,2811.6,0.89114661]
[1769733875793,13.89366651,2812.8,2811.6,0.002]
[1769733875992,13.89366651,2812.8,2811.9,0.001]
[1769733876332,13.89366651,2812.8,2811.4,0.88821342]
[1769733876490,13.89366651,2812.6,2811.2,13.34696013]
[1769733876693,13.89366651,2812.4,2811.2,13.34696013]
[1769733877318,9.88026422,2812.9,2811.2,13.34696013]
[1769733877319,1.45930372,2813.0,2812.2,13.34496013]
[1769733877506,0.002,2813.1,2812.2,13.34496013]
[1769733877707,0.89070232,2813.1,2812.2,13.34496013]
[1769733878102,14.78436883,2813.1,2812.2,13.34496013]
[1769733878311,13.89566651,2813.1,2812.2,13.34496013]
[1769733878509,1.47843547,2813.0,2812.3,0.8889521]
[1769733879830,0.001,2812.6,2812.3,0.8889521]
[1769733885230,0.001,2812.6,2812.2,3.55581936]
[1769733886899,0.001,2812.6,2812.2,3.55381936]
[1769733887936,0.001,2812.6,2812.0,0.88904694]
[1769733889505,0.001,2812.6,2812.1,13.34496013]
[1769733890253,0.001,2813.3,2812.3,13.41601818]
[1769733890453,6.42,2813.7,2812.8,6.32496149]
[1769733890747,0.001,2813.9,2812.9,13.34496013]
[1769733892335,0.001,2813.9,2813.1,13.34496013]
[1769733895536,0.002,2813.4,2813.2,13.94510059]
[1769733896350,0.002,2813.4,2812.8,0.747]
[1769733896351,0.002,2813.4,2812.9,3.55495166]
[1769733896645,13.66827725,2813.4,2812.9,0.88875783]
[1769733896813,13.66827725,2813.4,2813.0,0.88872517]
[1769733897008,15.03510497,2813.4,2813.0,0.88872517]
[1769733897314,15.03510497,2813.4,2813.1,0.8886973]
[1769733897531,15.03510497,2813.4,2812.9,3.55503656]
[1769733897724,15.03510497,2813.4,2812.8,0.002]
[1769733897927,13.66827725,2813.4,2812.8,0.002]
[1769733903240,13.66827725,2813.4,2812.8,0.004]
[1769733903633,0.001,2813.2,2812.8,0.004]
[1769733904230,3.55482479,2813.9,2813.1,13.05643289]
[1769733904231,13.66727725,2813.9,2813.1,13.05643289]
[1769733904441,1.36782772,2813.9,2813.1,13.05643289]
[1769733904640,1.36782772,2813.9,2812.8,9.8859738]
[1769733904641,13.66627725,2813.6,2812.8,0.004]
[1769733906663,13.66627725,2813.4,2812.8,0.004]
[1769733906859,13.66627725,2813.2,2812.8,0.004]
[1769733908467,13.66627725,2813.2,2813.1,0.001]
[1769733909266,1.45548502,2813.3,2813.1,4.05e-06]
[1769733909565,14.55484158,2813.6,2813.1,4.05e-06]
[1769733913981,20.97481576,2813.7,2813.1,4.05e-06]
[1769733914343,13.66627725,2813.6,2813.1,4.05e-06]
[1769733915948,0.001,2813.4,2813.1,4.05e-06]
[1769733923464,0.003,2813.4,2813.0,0.002]
[1769733927386,13.86339315,2813.4,2813.0,0.002]
[1769733928499,0.001,2813.2,2813.0,0.002]
[1769733940587,0.003,2813.4,2813.0,0.002]
[1769733944155,6.42,2813.7,2813.2,13.20464794]
[1769733944408,13.18927388,2814.6,2813.8,19.53152466]
[1769733944409,0.38480981,2814.6,2813.8,19.53152466]
[1769733944582,0.38480981,2814.6,2813.9,13.20464794]
[1769733944777,0.38480981,2814.6,2814.0,14.093063]
[1769733947398,0.38480981,2814.6,2814.0,0.88841506]
[1769733948095,13.97510955,2814.6,2813.5,0.88855319]
[1769733948295,13.97510955,2814.6,2813.6,0.88851684]
[1769733948601,12.70206407,2814.5,2813.6,0.88851684]
[1769733948991,12.70206407,2814.3,2813.7,0.88850977]
[1769733950293,2.77039871,2814.6,2813.7,0.88850977]
[1769733950294,0.38480981,2814.6,2814.2,19.53152466]
[1769733950513,12.70306407,2815.4,2814.3,19.53152466]
[1769733950514,12.70306407,2815.2,2814.3,19.53152466]
[1769733950733,12.70206407,2815.1,2814.3,6.32687672]
[1769733951031,12.70206407,2815.1,2814.1,13.20464794]
[1769733951427,12.70206407,2815.1,2814.2,14.09299986]
[1769733952131,0.001,2814.4,2814.2,14.09299986]
[1769733952427,12.70206407,2815.1,2814.2,14.09299986]
[1769733952631,12.70206407,2815.1,2814.2,14.09199986]
[1769733954232,0.001,2815.2,2814.2,14.09199986]
[1769733958338,0.001,2815.4,2814.3,13.28003907]
[1769733960213,0.001,2815.4,2814.5,13.28003907]
[1769733960420,0.001,2815.4,2814.4,0.8882888]
[1769733960421,0.001,2815.4,2814.7,13.28003907]
[1769733961143,12.80813597,2816.1,2814.7,13.28003907]